[Event "FIDE World Rapid Chess Championship 2021"]
[White "Harikrishna, Pentala"]
[Black "Janik, Igor"]
[WhiteFideId "5007003"]
[BlackFideId "1159259"]
[WhiteElo "2705"]
[BlackElo "2462"]
[Result "1-0"]
[Round "04"]
[TimeControl "900+10"]
[Date "2021.12.26"]
[WhiteClock "0:04:41"]
[BlackClock "0:02:26"]

1. d4 {[%clk 0:15:35]}  Nf6 {[%clk 0:15:28]} 2. c4 {[%clk 0:15:35]}  e6 {[%clk 0:15:28]} 3. Nf3 {[%clk 0:15:35]}  Bb4+ {[%clk 0:15:28]} 4. Nbd2 {[%clk 0:15:35]}  O-O {[%clk 0:15:28]} 5. e3 {[%clk 0:15:35]}  b6 {[%clk 0:15:28]} 6. Bd3 {[%clk 0:15:35]}  Bb7 {[%clk 0:15:28]} 7. O-O {[%clk 0:15:35]}  d5 {[%clk 0:15:28]} 8. b3 {[%clk 0:15:45]}  c5 {[%clk 0:14:17]} 9. Bb2 {[%clk 0:15:45]}  cxd4 {[%clk 0:14:17]} 10. exd4 {[%clk 0:15:45]}  dxc4 {[%clk 0:14:17]} 11. bxc4 {[%clk 0:15:45]}  Bxd2 {[%clk 0:13:35]} 12. Nxd2 {[%clk 0:15:22]}  Nc6 {[%clk 0:13:35]} 13. Nf3 {[%clk 0:15:22]}  Nb4 {[%clk 0:13:35]} 14. Be2 {[%clk 0:15:05]}  Rc8 {[%clk 0:12:00]} 15. Ne5 {[%clk 0:15:05]}  Nc6 {[%clk 0:12:00]} 16. Nxc6 {[%clk 0:15:05]}  Bxc6 {[%clk 0:12:00]} 17. Rc1 {[%clk 0:15:05]}  Ne4 {[%clk 0:11:50]} 18. f3 {[%clk 0:12:40]}  Nf6 {[%clk 0:09:55]} 19. Qd2 {[%clk 0:12:40]}  Qe7 {[%clk 0:09:55]} 20. Rfe1 {[%clk 0:12:40]}  Rfd8 {[%clk 0:09:25]} 21. Bd3 {[%clk 0:09:56]}  Qd6 {[%clk 0:09:10]} 22. Qf2 {[%clk 0:10:02]}  Qf4 {[%clk 0:07:57]} 23. Rcd1 {[%clk 0:07:06]}  Bb7 {[%clk 0:06:45]} 24. Re5 {[%clk 0:07:06]}  Nd7 {[%clk 0:06:45]} 25. Bc1 {[%clk 0:06:04]}  Qxc1 {[%clk 0:05:38]} 26. Bxh7+ {[%clk 0:06:04]}  Kxh7 {[%clk 0:05:42]} 27. Rxc1 {[%clk 0:06:04]}  Nxe5 {[%clk 0:05:42]} 28. dxe5 {[%clk 0:06:04]}  Rxc4 {[%clk 0:05:42]} 29. Qe3 {[%clk 0:06:04]}  Rxc1+ {[%clk 0:02:26]} 30. Qxc1 {[%clk 0:04:41]}  Kg8 {[%clk 0:02:26]} 31. Qc7 {[%clk 0:04:41]}  Rd1+ {[%clk 0:02:26]} 32. Kf2 {[%clk 0:04:41]}  Bd5 {[%clk 0:02:26]} 33. Qc8+ {[%clk 0:04:41]} 1-0


[Site "http://www.Chess.com"]

[Event "FIDE World Rapid Chess Championship 2021"]
[White "Mamedov, Rauf"]
[Black "Aziz, Husain"]
[WhiteFideId "13401653"]
[BlackFideId "12100293"]
[WhiteElo "2690"]
[BlackElo "2430"]
[Result "0-1"]
[Round "04"]
[TimeControl "900+10"]
[Date "2021.12.26"]
[WhiteClock "0:02:07"]
[BlackClock "0:00:18"]

1. e4 {[%clk 0:15:37]}  e5 {[%clk 0:15:23]} 2. Nf3 {[%clk 0:15:37]}  Nc6 {[%clk 0:15:23]} 3. Bc4 {[%clk 0:15:37]}  Nf6 {[%clk 0:15:23]} 4. d4 {[%clk 0:15:37]}  exd4 {[%clk 0:15:23]} 5. e5 {[%clk 0:15:37]}  d5 {[%clk 0:15:23]} 6. Bb5 {[%clk 0:15:37]}  Ne4 {[%clk 0:15:23]} 7. Nxd4 {[%clk 0:15:37]}  Bd7 {[%clk 0:15:23]} 8. Bxc6 {[%clk 0:15:37]}  bxc6 {[%clk 0:15:23]} 9. O-O {[%clk 0:15:37]}  Bc5 {[%clk 0:15:23]} 10. f3 {[%clk 0:15:37]}  Ng5 {[%clk 0:15:23]} 11. f4 {[%clk 0:15:37]}  Ne4 {[%clk 0:15:23]} 12. Be3 {[%clk 0:15:37]}  Bb6 {[%clk 0:15:23]} 13. Nd2 {[%clk 0:15:37]}  Nxd2 {[%clk 0:15:23]} 14. Qxd2 {[%clk 0:15:37]}  c5 {[%clk 0:15:23]} 15. Ne2 {[%clk 0:15:37]}  d4 {[%clk 0:16:12]} 16. Bf2 {[%clk 0:16:28]}  Bc6 {[%clk 0:16:12]} 17. c4 {[%clk 0:16:28]}  Qd7 {[%clk 0:16:12]} 18. Ng3 {[%clk 0:16:28]}  h5 {[%clk 0:11:20]} 19. f5 {[%clk 0:16:17]}  O-O-O {[%clk 0:10:30]} 20. h4 {[%clk 0:16:17]}  Bb7 {[%clk 0:10:30]} 21. Rae1 {[%clk 0:13:07]}  Rde8 {[%clk 0:09:33]} 22. Kh2 {[%clk 0:09:39]}  Qc6 {[%clk 0:09:34]} 23. Rg1 {[%clk 0:09:39]}  g6 {[%clk 0:09:34]} 24. f6 {[%clk 0:09:39]}  Re6 {[%clk 0:07:44]} 25. Nh1 {[%clk 0:06:38]}  Qa4 {[%clk 0:07:51]} 26. b3 {[%clk 0:06:38]}  Qa3 {[%clk 0:07:51]} 27. Bg3 {[%clk 0:06:38]}  Ba5 {[%clk 0:07:51]} 28. Qc2 {[%clk 0:06:38]}  Bxe1 {[%clk 0:07:51]} 29. Rxe1 {[%clk 0:06:38]}  Qb4 {[%clk 0:07:51]} 30. Re2 {[%clk 0:06:27]}  Rd8 {[%clk 0:07:29]} 31. Nf2 {[%clk 0:05:35]}  Qc3 {[%clk 0:07:29]} 32. Qxc3 {[%clk 0:05:35]}  dxc3 {[%clk 0:07:29]} 33. Bf4 {[%clk 0:05:35]}  Rd4 {[%clk 0:06:19]} 34. Kg3 {[%clk 0:04:36]}  Bxg2 {[%clk 0:03:40]} 35. Rc2 {[%clk 0:04:35]}  Be4 {[%clk 0:03:40]} 36. Rxc3 {[%clk 0:04:35]}  Bf5 {[%clk 0:03:40]} 37. a4 {[%clk 0:04:36]}  Kd7 {[%clk 0:01:32]} 38. Kf3 {[%clk 0:04:36]}  Rb6 {[%clk 0:01:32]} 39. Ke3 {[%clk 0:01:44]}  Ke6 {[%clk 0:02:36]} 40. Bg3 {[%clk 0:01:44]}  Rd8 {[%clk 0:02:37]} 41. a5 {[%clk 0:01:48]}  Rb4 {[%clk 0:02:37]} 42. Kf4 {[%clk 0:01:48]}  Rdb8 {[%clk 0:02:37]} 43. Nd3 {[%clk 0:01:48]}  Bxd3 {[%clk 0:02:37]} 44. Rxd3 {[%clk 0:01:48]}  Rxb3 {[%clk 0:02:37]} 45. Rd5 {[%clk 0:01:48]}  R8b4 {[%clk 0:01:58]} 46. Rxc5 {[%clk 0:01:00]}  Rc3 {[%clk 0:01:58]} 47. Rc6+ {[%clk 0:01:00]}  Kd7 {[%clk 0:01:58]} 48. e6+ {[%clk 0:01:00]}  Kxc6 {[%clk 0:01:58]} 49. exf7 {[%clk 0:01:00]}  Rb8 {[%clk 0:01:58]} 50. Be1 {[%clk 0:01:00]}  Rxc4+ {[%clk 0:01:58]} 51. Kg5 {[%clk 0:01:00]}  Rf8 {[%clk 0:01:10]} 52. Kxg6 {[%clk 0:01:43]}  Rg4+ {[%clk 0:01:10]} 53. Kxh5 {[%clk 0:01:43]}  Rg2 {[%clk 0:00:18]} 54. Bd2 {[%clk 0:02:07]}  Rxf7 {[%clk 0:00:18]} 55. Bg5 {[%clk 0:02:07]}  Kd5 {[%clk 0:00:18]} 56. a6 {[%clk 0:02:07]}  Ke6 {[%clk 0:00:18]} 0-1


[Site "http://www.Chess.com"]

[Event "FIDE World Rapid Chess Championship 2021"]
[White "Nguyen, Thai Dai Van"]
[Black "Kovalev, Vladislav"]
[WhiteFideId "358878"]
[BlackFideId "13504398"]
[WhiteElo "2488"]
[BlackElo "2647"]
[Result "0-1"]
[Round "04"]
[TimeControl "900+10"]
[Date "2021.12.26"]
[WhiteClock "0:06:33"]
[BlackClock "0:05:34"]

1. d4 {[%clk 0:15:33]}  Nf6 {[%clk 0:15:34]} 2. c4 {[%clk 0:15:33]}  e6 {[%clk 0:15:34]} 3. Nf3 {[%clk 0:15:33]}  Bb4+ {[%clk 0:15:34]} 4. Nbd2 {[%clk 0:15:33]}  O-O {[%clk 0:15:34]} 5. a3 {[%clk 0:15:33]}  Be7 {[%clk 0:15:34]} 6. e4 {[%clk 0:15:33]}  d6 {[%clk 0:15:34]} 7. Qc2 {[%clk 0:15:33]}  Nfd7 {[%clk 0:15:59]} 8. Nb1 {[%clk 0:14:36]}  e5 {[%clk 0:15:59]} 9. Nc3 {[%clk 0:14:36]}  Nc6 {[%clk 0:15:59]} 10. Be3 {[%clk 0:14:01]}  Bf6 {[%clk 0:07:29]} 11. d5 {[%clk 0:14:01]}  Nd4 {[%clk 0:07:29]} 12. Qd1 {[%clk 0:14:01]}  Nc5 {[%clk 0:07:29]} 13. b4 {[%clk 0:14:01]}  Ncb3 {[%clk 0:07:29]} 14. Rb1 {[%clk 0:12:51]}  Nxf3+ {[%clk 0:07:12]} 15. gxf3 {[%clk 0:12:48]}  Nd4 {[%clk 0:07:19]} 16. Bxd4 {[%clk 0:10:16]}  exd4 {[%clk 0:07:28]} 17. Ne2 {[%clk 0:10:16]}  a5 {[%clk 0:07:28]} 18. b5 {[%clk 0:10:16]}  g6 {[%clk 0:06:45]} 19. Nxd4 {[%clk 0:06:33]}  Bg7 {[%clk 0:05:34]} 20. Be2 {[%clk 0:06:33]}  Qf6 {[%clk 0:05:34]} 21. Nc2 {[%clk 0:06:33]}  Qh4 {[%clk 0:05:34]} 22. b6 {[%clk 0:06:33]}  Bc3+ {[%clk 0:05:34]} 0-1


[Site "http://www.Chess.com"]

[Event "FIDE World Rapid Chess Championship 2021"]
[White "Costachi, Mihnea"]
[Black "Ponkratov, Pavel"]
[WhiteFideId "1217518"]
[BlackFideId "4157800"]
[WhiteElo "2443"]
[BlackElo "2614"]
[Result "1-0"]
[Round "04"]
[TimeControl "900+10"]
[Date "2021.12.26"]
[WhiteClock "0:00:41"]
[BlackClock "0:01:57"]

1. d4 {[%clk 0:15:32]}  Nf6 {[%clk 0:15:27]} 2. c4 {[%clk 0:15:32]}  e5 {[%clk 0:15:27]} 3. dxe5 {[%clk 0:15:32]}  Ng4 {[%clk 0:15:27]} 4. Bf4 {[%clk 0:15:30]}  g5 {[%clk 0:15:27]} 5. Bg3 {[%clk 0:15:30]}  Bg7 {[%clk 0:15:27]} 6. Nf3 {[%clk 0:15:30]}  Nc6 {[%clk 0:15:27]} 7. Nc3 {[%clk 0:15:30]}  Ngxe5 {[%clk 0:15:27]} 8. Nxe5 {[%clk 0:15:30]}  Nxe5 {[%clk 0:15:27]} 9. e3 {[%clk 0:15:30]}  d6 {[%clk 0:15:27]} 10. Be2 {[%clk 0:15:30]}  Be6 {[%clk 0:15:27]} 11. h4 {[%clk 0:15:22]}  h6 {[%clk 0:16:14]} 12. Qb3 {[%clk 0:15:22]}  g4 {[%clk 0:16:14]} 13. O-O {[%clk 0:13:18]}  O-O {[%clk 0:15:18]} 14. Nd5 {[%clk 0:13:18]}  f5 {[%clk 0:15:22]} 15. Nf4 {[%clk 0:10:57]}  Bf7 {[%clk 0:15:22]} 16. Qc2 {[%clk 0:10:57]}  Qf6 {[%clk 0:10:40]} 17. c5 {[%clk 0:10:23]}  dxc5 {[%clk 0:10:22]} 18. Qxc5 {[%clk 0:10:23]}  c6 {[%clk 0:10:22]} 19. Rfd1 {[%clk 0:10:23]}  b6 {[%clk 0:10:22]} 20. Qc2 {[%clk 0:10:23]}  Rfd8 {[%clk 0:10:22]} 21. Rac1 {[%clk 0:10:23]}  c5 {[%clk 0:10:22]} 22. b3 {[%clk 0:09:20]}  Kh8 {[%clk 0:10:09]} 23. Rxd8+ {[%clk 0:09:10]}  Rxd8 {[%clk 0:10:09]} 24. Rd1 {[%clk 0:09:10]}  Rxd1+ {[%clk 0:10:09]} 25. Qxd1 {[%clk 0:09:10]}  a5 {[%clk 0:10:09]} 26. Bb5 {[%clk 0:09:10]}  Qe7 {[%clk 0:09:55]} 27. Qc2 {[%clk 0:08:13]}  Qf6 {[%clk 0:09:55]} 28. Qd1 {[%clk 0:08:13]}  c4 {[%clk 0:09:19]} 29. bxc4 {[%clk 0:07:42]}  Nxc4 {[%clk 0:09:19]} 30. Qd7 {[%clk 0:07:42]}  Ne5 {[%clk 0:09:19]} 31. Qc8+ {[%clk 0:06:51]}  Kh7 {[%clk 0:06:54]} 32. a4 {[%clk 0:06:51]}  h5 {[%clk 0:06:54]} 33. Qc7 {[%clk 0:06:51]}  Kh6 {[%clk 0:06:33]} 34. Qc8 {[%clk 0:06:51]}  Kh7 {[%clk 0:06:12]} 35. Be8 {[%clk 0:04:05]}  Kh6 {[%clk 0:06:12]} 36. Bxf7 {[%clk 0:04:05]}  Qxf7 {[%clk 0:06:12]} 37. Qb8 {[%clk 0:04:05]}  Nc4 {[%clk 0:06:12]} 38. Qd8 {[%clk 0:04:05]}  Bf6 {[%clk 0:04:04]} 39. Qc8 {[%clk 0:03:10]}  Nd6 {[%clk 0:04:04]} 40. Qc6 {[%clk 0:03:10]}  Ne4 {[%clk 0:04:04]} 41. Nd5 {[%clk 0:03:10]}  Kg7 {[%clk 0:04:04]} 42. Bf4 {[%clk 0:03:10]}  Kh7 {[%clk 0:03:01]} 43. g3 {[%clk 0:02:33]}  Bg7 {[%clk 0:03:01]} 44. Kg2 {[%clk 0:02:33]}  Nc5 {[%clk 0:03:01]} 45. Nxb6 {[%clk 0:02:33]}  Nd3 {[%clk 0:03:01]} 46. Qd5 {[%clk 0:01:40]}  Qxd5+ {[%clk 0:01:59]} 47. Nxd5 {[%clk 0:01:40]}  Nb2 {[%clk 0:01:59]} 48. Bc7 {[%clk 0:01:40]}  Nxa4 {[%clk 0:01:59]} 49. Bxa5 {[%clk 0:01:40]}  Bf8 {[%clk 0:01:59]} 50. Nf4 {[%clk 0:01:40]}  Bd6 {[%clk 0:01:59]} 51. Nxh5 {[%clk 0:00:45]}  Kg6 {[%clk 0:01:51]} 52. Nf4+ {[%clk 0:00:45]}  Bxf4 {[%clk 0:01:51]} 53. exf4 {[%clk 0:00:41]}  Nc5 {[%clk 0:01:49]} 54. Kf1 {[%clk 0:00:41]}  Ne6 {[%clk 0:01:49]} 55. Bb6 {[%clk 0:00:41]}  Nf8 {[%clk 0:01:49]} 56. Ke2 {[%clk 0:00:41]}  Nd7 {[%clk 0:01:49]} 57. Bd4 {[%clk 0:00:41]}  Nb8 {[%clk 0:01:49]} 58. Kd3 {[%clk 0:00:41]}  Nc6 {[%clk 0:01:49]} 59. Bc5 {[%clk 0:00:41]}  Na5 {[%clk 0:01:49]} 60. Kc3 {[%clk 0:00:41]}  Nb7 {[%clk 0:01:57]} 61. Bb4 {[%clk 0:00:41]}  Nd8 {[%clk 0:01:57]} 62. Kd4 {[%clk 0:00:41]}  Nf7 {[%clk 0:01:57]} 63. Kd5 {[%clk 0:00:41]}  Kf6 {[%clk 0:01:57]} 64. Ba5 {[%clk 0:00:41]}  Kg6 {[%clk 0:01:57]} 65. Ke6 {[%clk 0:00:41]}  Nh6 {[%clk 0:01:57]} 66. Bd8 {[%clk 0:00:41]} 1-0


[Site "http://www.Chess.com"]

[Event "FIDE World Rapid Chess Championship 2021"]
[White "Chigaev, Maksim"]
[Black "Tang, Andrew"]
[WhiteFideId "4108116"]
[BlackFideId "2059630"]
[WhiteElo "2605"]
[BlackElo "2427"]
[Result "1-0"]
[Round "04"]
[TimeControl "900+10"]
[Date "2021.12.26"]
[WhiteClock "0:00:47"]
[BlackClock "0:00:21"]

1. c4 {[%clk 0:15:35]}  e6 {[%clk 0:15:26]} 2. g3 {[%clk 0:15:35]}  d5 {[%clk 0:15:26]} 3. Bg2 {[%clk 0:15:35]}  Nf6 {[%clk 0:15:26]} 4. Nf3 {[%clk 0:15:35]}  dxc4 {[%clk 0:15:26]} 5. Qa4+ {[%clk 0:15:35]}  Nbd7 {[%clk 0:15:26]} 6. Qxc4 {[%clk 0:15:35]}  a6 {[%clk 0:15:26]} 7. Qc2 {[%clk 0:15:35]}  c5 {[%clk 0:15:26]} 8. a4 {[%clk 0:15:35]}  b6 {[%clk 0:15:26]} 9. O-O {[%clk 0:15:35]}  Bb7 {[%clk 0:15:26]} 10. Nc3 {[%clk 0:15:35]}  Be7 {[%clk 0:16:00]} 11. Rd1 {[%clk 0:14:59]}  O-O {[%clk 0:13:36]} 12. d3 {[%clk 0:14:28]}  Bc6 {[%clk 0:11:18]} 13. e4 {[%clk 0:13:51]}  e5 {[%clk 0:11:18]} 14. Nh4 {[%clk 0:13:50]}  Re8 {[%clk 0:11:18]} 15. Nf5 {[%clk 0:13:30]}  Bf8 {[%clk 0:08:12]} 16. b3 {[%clk 0:13:30]}  Nb8 {[%clk 0:07:37]} 17. Bg5 {[%clk 0:10:10]}  h6 {[%clk 0:05:48]} 18. Bxf6 {[%clk 0:10:10]}  Qxf6 {[%clk 0:05:48]} 19. Ne3 {[%clk 0:10:10]}  Qd8 {[%clk 0:05:42]} 20. Ncd5 {[%clk 0:07:31]}  Bb7 {[%clk 0:05:42]} 21. Nc4 {[%clk 0:07:31]}  b5 {[%clk 0:05:42]} 22. Ncb6 {[%clk 0:07:10]}  Bxd5 {[%clk 0:03:34]} 23. Nxd5 {[%clk 0:07:10]}  Nc6 {[%clk 0:03:34]} 24. axb5 {[%clk 0:07:10]}  Nd4 {[%clk 0:03:34]} 25. Qb2 {[%clk 0:07:10]}  Nxb5 {[%clk 0:03:34]} 26. Ra4 {[%clk 0:05:21]}  Nd4 {[%clk 0:03:24]} 27. Qa2 {[%clk 0:05:21]}  Re6 {[%clk 0:03:00]} 28. h4 {[%clk 0:03:13]}  Qb8 {[%clk 0:03:00]} 29. Rb1 {[%clk 0:03:13]}  Qb7 {[%clk 0:03:00]} 30. Bh3 {[%clk 0:02:18]}  Rd6 {[%clk 0:01:43]} 31. Bg2 {[%clk 0:02:18]}  Rb8 {[%clk 0:01:43]} 32. Rc4 {[%clk 0:02:18]}  Rc6 {[%clk 0:00:46]} 33. h5 {[%clk 0:01:07]}  Qd7 {[%clk 0:00:46]} 34. Qa4 {[%clk 0:01:07]}  Qe6 {[%clk 0:00:46]} 35. Kh2 {[%clk 0:01:07]}  Rb5 {[%clk 0:00:46]} 36. Bh3 {[%clk 0:01:07]}  Qd6 {[%clk 0:00:46]} 37. Kg2 {[%clk 0:01:07]}  Qd8 {[%clk 0:00:46]} 38. b4 {[%clk 0:01:07]}  Qg5 {[%clk 0:00:46]} 39. Bd7 {[%clk 0:01:06]}  Rd6 {[%clk 0:00:25]} 40. Rxd4 {[%clk 0:01:06]}  exd4 {[%clk 0:00:25]} 41. Bxb5 {[%clk 0:01:06]}  axb5 {[%clk 0:00:25]} 42. Qxb5 {[%clk 0:01:06]}  cxb4 {[%clk 0:00:25]} 43. Ra1 {[%clk 0:01:06]}  Rd8 {[%clk 0:00:25]} 44. Ra7 {[%clk 0:01:06]}  b3 {[%clk 0:00:25]} 45. Qxb3 {[%clk 0:01:06]}  Qxh5 {[%clk 0:00:21]} 46. Nf4 {[%clk 0:00:47]} 1-0


[Site "http://www.Chess.com"]

[Event "FIDE World Rapid Chess Championship 2021"]
[White "Ghaem Maghami, Ehsan"]
[Black "Saraci, Nderim"]
[WhiteFideId "12500739"]
[BlackFideId "6351921"]
[WhiteElo "2553"]
[BlackElo "2414"]
[Result "1-0"]
[Round "04"]
[TimeControl "900+10"]
[Date "2021.12.26"]
[WhiteClock "0:09:19"]
[BlackClock "0:02:06"]

1. c4 {[%clk 0:15:27]}  Nf6 {[%clk 0:15:13]} 2. Nc3 {[%clk 0:15:27]}  c5 {[%clk 0:15:13]} 3. Nf3 {[%clk 0:15:27]}  Nc6 {[%clk 0:15:13]} 4. d4 {[%clk 0:15:27]}  cxd4 {[%clk 0:15:13]} 5. Nxd4 {[%clk 0:15:27]}  g6 {[%clk 0:15:13]} 6. e4 {[%clk 0:15:27]}  d6 {[%clk 0:15:13]} 7. Be2 {[%clk 0:15:27]}  Bg7 {[%clk 0:15:13]} 8. Be3 {[%clk 0:15:27]}  O-O {[%clk 0:15:13]} 9. O-O {[%clk 0:15:27]}  Bd7 {[%clk 0:15:13]} 10. Nb3 {[%clk 0:15:27]}  a5 {[%clk 0:14:33]} 11. Nd2 {[%clk 0:16:27]}  Ne8 {[%clk 0:14:33]} 12. Rc1 {[%clk 0:16:27]}  Nc7 {[%clk 0:14:33]} 13. Bb6 {[%clk 0:15:03]}  Bd4 {[%clk 0:13:42]} 14. Nd5 {[%clk 0:15:03]}  Bxb6 {[%clk 0:13:42]} 15. Nxb6 {[%clk 0:15:03]}  Rb8 {[%clk 0:13:42]} 16. Nb3 {[%clk 0:14:28]}  Ne6 {[%clk 0:13:01]} 17. Nxd7 {[%clk 0:13:39]}  Qxd7 {[%clk 0:13:01]} 18. Bg4 {[%clk 0:13:39]}  Qd8 {[%clk 0:11:29]} 19. Bxe6 {[%clk 0:13:47]}  fxe6 {[%clk 0:11:29]} 20. c5 {[%clk 0:13:47]}  d5 {[%clk 0:11:29]} 21. Qg4 {[%clk 0:13:47]}  Qd7 {[%clk 0:06:51]} 22. exd5 {[%clk 0:11:28]}  Qxd5 {[%clk 0:05:03]} 23. Qa4 {[%clk 0:11:28]}  e5 {[%clk 0:05:03]} 24. Nxa5 {[%clk 0:10:10]}  Ra8 {[%clk 0:04:30]} 25. b4 {[%clk 0:09:19]}  Rf4 {[%clk 0:02:06]} 26. Nxc6 {[%clk 0:09:19]} 1-0


[Site "http://www.Chess.com"]

[Event "FIDE World Rapid Chess Championship 2021"]
[White "Tologontegin, Semetey"]
[Black "Parligras, Mircea-Emilian"]
[WhiteFideId "13800574"]
[BlackFideId "1204297"]
[WhiteElo "2300"]
[BlackElo "2550"]
[Result "0-1"]
[Round "04"]
[TimeControl "900+10"]
[Date "2021.12.26"]
[WhiteClock "0:00:27"]
[BlackClock "0:00:45"]

1. d4 {[%clk 0:15:45]}  Nf6 {[%clk 0:15:35]} 2. c4 {[%clk 0:15:45]}  e6 {[%clk 0:15:35]} 3. Nc3 {[%clk 0:15:45]}  Bb4 {[%clk 0:15:35]} 4. e3 {[%clk 0:15:45]}  O-O {[%clk 0:15:35]} 5. Ne2 {[%clk 0:15:45]}  c6 {[%clk 0:15:42]} 6. a3 {[%clk 0:15:45]}  Ba5 {[%clk 0:15:42]} 7. Ng3 {[%clk 0:15:45]}  d5 {[%clk 0:15:42]} 8. cxd5 {[%clk 0:15:45]}  exd5 {[%clk 0:15:42]} 9. Bd3 {[%clk 0:15:45]}  Re8 {[%clk 0:15:42]} 10. O-O {[%clk 0:15:45]}  Nbd7 {[%clk 0:15:42]} 11. Qc2 {[%clk 0:15:45]}  h5 {[%clk 0:15:20]} 12. h3 {[%clk 0:15:44]}  Nf8 {[%clk 0:15:20]} 13. Bd2 {[%clk 0:15:44]}  Bc7 {[%clk 0:15:20]} 14. f4 {[%clk 0:15:07]}  h4 {[%clk 0:15:14]} 15. Nge2 {[%clk 0:15:07]}  Qe7 {[%clk 0:15:14]} 16. Kh1 {[%clk 0:13:21]}  Bd7 {[%clk 0:14:50]} 17. Ng1 {[%clk 0:13:21]}  Ne4 {[%clk 0:13:10]} 18. Be1 {[%clk 0:10:34]}  Nxc3 {[%clk 0:13:10]} 19. Bxc3 {[%clk 0:10:34]}  c5 {[%clk 0:11:44]} 20. Rae1 {[%clk 0:10:28]}  c4 {[%clk 0:08:43]} 21. Bf5 {[%clk 0:09:03]}  g6 {[%clk 0:07:19]} 22. Bxd7 {[%clk 0:05:31]}  Nxd7 {[%clk 0:06:35]} 23. Nf3 {[%clk 0:05:31]}  Nf6 {[%clk 0:06:35]} 24. Bb4 {[%clk 0:05:31]}  Qe6 {[%clk 0:06:44]} 25. Ng5 {[%clk 0:02:47]}  Qf5 {[%clk 0:06:44]} 26. Qf2 {[%clk 0:02:47]}  a5 {[%clk 0:06:44]} 27. Bc3 {[%clk 0:01:38]}  Kg7 {[%clk 0:04:34]} 28. Qxh4 {[%clk 0:01:38]}  Rh8 {[%clk 0:04:34]} 29. Qg3 {[%clk 0:01:38]}  Rae8 {[%clk 0:04:34]} 30. a4 {[%clk 0:01:38]}  Qc2 {[%clk 0:04:38]} 31. Qf3 {[%clk 0:01:18]}  Qxa4 {[%clk 0:04:38]} 32. e4 {[%clk 0:01:18]}  dxe4 {[%clk 0:01:45]} 33. Nxe4 {[%clk 0:00:42]}  Nd5 {[%clk 0:01:28]} 34. f5 {[%clk 0:00:42]}  Qc6 {[%clk 0:01:28]} 35. fxg6 {[%clk 0:00:42]}  Qxg6 {[%clk 0:01:28]} 36. Nc5 {[%clk 0:00:42]}  Nxc3 {[%clk 0:01:28]} 37. bxc3 {[%clk 0:00:42]}  Rxe1 {[%clk 0:01:28]} 38. Rxe1 {[%clk 0:00:42]}  b6 {[%clk 0:01:28]} 39. Nd7 {[%clk 0:00:42]}  Rh5 {[%clk 0:00:54]} 40. Re4 {[%clk 0:00:26]}  Rf5 {[%clk 0:00:54]} 41. Qe2 {[%clk 0:00:26]}  Rf1+ {[%clk 0:00:54]} 42. Qxf1 {[%clk 0:00:26]}  Qxe4 {[%clk 0:00:54]} 43. Qf6+ {[%clk 0:00:26]}  Kg8 {[%clk 0:00:54]} 44. Ne5 {[%clk 0:00:26]}  Bxe5 {[%clk 0:00:54]} 45. dxe5 {[%clk 0:00:26]}  a4 {[%clk 0:00:54]} 46. Qd8+ {[%clk 0:00:05]}  Kh7 {[%clk 0:00:54]} 47. Qe7 {[%clk 0:00:05]}  Qf5 {[%clk 0:00:43]} 48. Qh4+ {[%clk 0:00:42]}  Kg7 {[%clk 0:00:43]} 49. Qxc4 {[%clk 0:00:42]}  a3 {[%clk 0:00:43]} 50. Qa2 {[%clk 0:00:42]}  Qf1+ {[%clk 0:00:43]} 51. Kh2 {[%clk 0:00:42]}  Qf4+ {[%clk 0:00:43]} 52. Kh1 {[%clk 0:00:42]}  Qc1+ {[%clk 0:00:43]} 53. Kh2 {[%clk 0:00:42]}  Qb2 {[%clk 0:00:43]} 54. Qc4 {[%clk 0:00:42]}  a2 {[%clk 0:00:43]} 55. Qg4+ {[%clk 0:00:42]}  Kf8 {[%clk 0:00:43]} 56. Qg5 {[%clk 0:00:04]}  Ke8 {[%clk 0:00:32]} 57. Qg8+ {[%clk 0:00:04]}  Ke7 {[%clk 0:00:32]} 58. Qg5+ {[%clk 0:00:04]}  Kd7 {[%clk 0:00:32]} 59. Qg4+ {[%clk 0:00:04]}  Kc7 {[%clk 0:00:32]} 60. Qc4+ {[%clk 0:00:04]}  Kb8 {[%clk 0:00:32]} 61. e6 {[%clk 0:00:04]}  fxe6 {[%clk 0:00:32]} 62. Qf4+ {[%clk 0:00:04]}  Kb7 {[%clk 0:00:32]} 63. Qf3+ {[%clk 0:00:04]}  Ka7 {[%clk 0:00:32]} 64. Qf7+ {[%clk 0:00:04]}  Ka6 {[%clk 0:00:32]} 65. Qxe6 {[%clk 0:00:04]}  a1=Q {[%clk 0:00:32]} 66. Qc4+ {[%clk 0:00:24]}  Qb5 {[%clk 0:00:45]} 67. Qc8+ {[%clk 0:00:27]}  Ka5 {[%clk 0:00:45]} 68. Qa8+ {[%clk 0:00:27]}  Qa6 {[%clk 0:00:45]} 69. Qd5+ {[%clk 0:00:27]}  Ka4 {[%clk 0:00:45]} 70. Qd4+ {[%clk 0:00:27]}  Kb3 {[%clk 0:00:45]} 71. Qb4+ {[%clk 0:00:27]}  Ka2 {[%clk 0:00:45]} 72. c4 {[%clk 0:00:27]}  Qc1 {[%clk 0:00:45]} 73. Qa4+ {[%clk 0:00:27]}  Qxa4 {[%clk 0:00:45]} 0-1


[Site "http://www.Chess.com"]